fUSD/lending_fUSD_20260202
["ID","MTS","AMOUNT","RATE_DAILY","PERIOD"]
[404329144,1770063047872,-956.58050138,0.00016438,2]
[404329145,1770063047884,-956.58050138,0.00016438,2]
[404329146,1770063047898,-956.58050138,0.00016438,2]
[404329147,1770063047911,-956.58050138,0.00016438,2]
[404329148,1770063047926,-956.58050138,0.00016438,2]
[404329149,1770063047935,-956.58050138,0.00016438,2]
[404329150,1770063047948,-956.58050138,0.00016438,2]
[404329151,1770063047957,-956.58050138,0.00016438,2]
[404329152,1770063047967,-956.58050138,0.00016438,2]
[404329153,1770063047977,-956.58050138,0.00016438,2]
[404329154,1770063047988,-956.58050138,0.00016438,2]
[404329155,1770063047998,-956.58050138,0.00016438,2]
[404329156,1770063048008,-956.58050138,0.00016438,2]
[404329157,1770063048019,-956.58050138,0.00016438,2]
[404329158,1770063048029,-956.58050138,0.00016438,2]
[404329159,1770063048038,-956.58050138,0.00016438,2]
[404329160,1770063048048,-956.58050138,0.00016438,2]
[404329161,1770063048057,-956.58050138,0.00016438,2]
[404329162,1770063048067,-956.58050138,0.00016438,2]
[404329163,1770063048077,-956.58050138,0.00016438,2]
[404329164,1770063048087,-956.58050138,0.00016438,2]
[404329165,1770063048096,-956.58050138,0.00016438,2]
[404329166,1770063048106,-956.58050138,0.00016438,2]
[404329167,1770063048116,-956.58050138,0.00016438,2]
[404329168,1770063048126,-956.58050138,0.00016438,2]
[404329169,1770063048135,-956.58050138,0.00016438,2]
[404329170,1770063048145,-956.58050138,0.00016438,2]
[404329171,1770063048155,-956.58050138,0.00016438,2]
[404329172,1770063048164,-956.58050138,0.00016438,2]
[404329173,1770063048174,-956.58050138,0.00016438,2]
[404329174,1770063048183,-956.58050138,0.00016438,2]
[404329175,1770063048193,-956.58050138,0.00016438,2]
[404329176,1770063048202,-956.58050138,0.00016438,2]
[404329177,1770063048212,-956.58050138,0.00016438,2]
[404329178,1770063048222,-956.58050138,0.00016438,2]
[404329179,1770063048232,-956.58050138,0.00016438,2]
[404329180,1770063048242,-956.58050138,0.00016438,2]
[404329181,1770063048251,-956.58050138,0.00016438,2]
[404329182,1770063048261,-956.58050138,0.00016438,2]
[404329183,1770063048271,-956.58050138,0.00016438,2]
[404329184,1770063048281,-956.58050138,0.00016438,2]
[404329185,1770063048290,-956.58050138,0.00016438,2]
[404329186,1770063048300,-956.58050138,0.00016438,2]
[404329187,1770063048310,-956.58050138,0.00016438,2]
[404329188,1770063048320,-956.58050138,0.00016438,2]
[404329189,1770063048330,-956.58050138,0.00016438,2]
[404329190,1770063048339,-956.58050138,0.00016438,2]
[404329191,1770063048349,-956.58050138,0.00016438,2]
[404329192,1770063048358,-956.58050138,0.00016438,2]
[404329193,1770063048368,-956.58050138,0.00016438,2]
[404329194,1770063048377,-956.58050138,0.00016438,2]
[404329195,1770063048387,-956.58050138,0.00016438,2]
[404329196,1770063048396,-956.58050138,0.00016438,2]
[404329197,1770063048406,-956.58050138,0.00016438,2]
[404329198,1770063048415,-956.58050138,0.00016438,2]
[404329199,1770063048425,-956.58050138,0.00016438,2]
[404329200,1770063048434,-956.58050138,0.00016438,2]
[404329201,1770063048443,-956.58050138,0.00016438,2]
[404329202,1770063048453,-956.58050138,0.00016438,2]
[404329203,1770063048463,-956.58050138,0.00016438,2]
[404329204,1770063048472,-150.25668222,0.00016438,2]
[404329205,1770063048483,-800.0,0.00016438,2]
[404329206,1770063048492,-525.72,0.00016457,2]
[404329207,1770063048502,-150.0,0.00016473,2]
[404329208,1770063048512,-500.0,0.00016568,2]
[404329209,1770063048522,-503.70343212,0.00016568,2]
[404329210,1770063048531,-225.55346155,0.00016568,2]
[404329211,1770063048541,-1501.04497332,0.00016568,2]
[404329212,1770063048551,-500.0,0.00016568,2]
[404329213,1770063048561,-1501.43163729,0.00016568,2]
[404329214,1770063048571,-500.0,0.00016568,2]
[404329215,1770063048580,-1500.0,0.00016568,2]
[404329216,1770063048590,-191.30611065,0.00016568,2]
[404329217,1770063048599,-500.0,0.00016568,2]
[404329218,1770063048608,-368.88723017,0.00016568,2]
[404329219,1770063048618,-500.0,0.00016568,2]
[404329220,1770063048627,-432.32446254,0.00016568,2]
[404329221,1770063048636,-500.0,0.00016568,2]
[404329222,1770063048646,-500.0,0.00016568,2]
[404329223,1770063048655,-385.68955508,0.00016568,2]
[404329224,1770063048665,-1500.0,0.00016568,2]
[404329225,1770063048674,-1002.44429427,0.00016568,2]
[404329226,1770063048846,-1003.56470175,0.00016568,2]
[404329227,1770063048856,-1500.0,0.00016568,2]
[404329228,1770063048866,-503.30357537,0.00016568,2]
[404329229,1770063048876,-408.63714551,0.00016568,2]
[404329230,1770063048885,-500.0,0.00016613,2]
[404329231,1770063048895,-3000.0,0.00016712,2]
[404329232,1770063048904,-2016.45192786,0.00016712,2]
[404329233,1770063048914,-3000.0,0.00016712,2]
[404329234,1770063048923,-1134.26821676,0.00016757,2]
[404329235,1770063048933,-225.18697532,0.00016769,2]
[404329236,1770063048947,-1536.04360649,0.00016769,2]
[404329237,1770063048957,-187.78006525,0.00016769,2]
[404329238,1770063048967,-230.16041742,0.00016769,2]
[404329239,1770063048977,-2129.0,0.00016818,2]
[404329240,1770063048987,-500.0,0.00016834,2]
[404329241,1770063048998,-2816.95173349,0.00016841,2]
[404329242,1770063049008,-1613.0,0.00016843,2]
[404329243,1770063049020,-1852.42,0.00016855,2]
[404329244,1770063049030,-166.66,0.00016873,2]
[404329245,1770063049039,-6453.0,0.00016884,2]
[404329246,1770063049049,-421.88469562,0.00016907,2]
[404329247,1770063049059,-16763.1750962,0.00016907,2]
[404329248,1770063049068,-300.0,0.00017,2]
[404329249,1770063049077,-300.0,0.00017021,2]
[404329250,1770063049087,-858.0,0.0001704,2]
[404329251,1770063049096,-334.5472959,0.00017042,2]
[404329252,1770063049105,-159.60859955,0.00017043,2]
[404329253,1770063049115,-6317.2,0.00017059,2]
[404329254,1770063049124,-271.46575438,0.000171,2]
[404329255,1770063049134,-500.0,0.00017116,2]
[404329256,1770063049143,-2000.0,0.00017116,2]
[404329257,1770063049153,-1000.0,0.00017116,2]
[404329258,1770063049163,-2620.0,0.00017119,2]
[404329259,1770063049173,-165.62377034,0.00017144,2]
[404329260,1770063049183,-500.0,0.00017161,2]
[404329261,1770063049192,-256.86,0.00017196,2]
[404329262,1770063049202,-301.78,0.00017196,2]
[404329263,1770063049211,-469.55,0.00017196,2]
[404329264,1770063049220,-180.29,0.00017196,2]
[404329265,1770063049230,-3500.0,0.0001726,2]
[404329266,1770063049239,-1000.0,0.0001726,2]
[404329267,1770063049248,-475.39944629,0.0001726,2]
[404329268,1770063049257,-162.264,0.00017268,2]
[404329269,1770063049267,-1334.0,0.00017272,2]
[404329270,1770063049276,-1410.0,0.00017272,2]
[404329271,1770063049284,-163.0,0.00017272,2]
[404329272,1770063049293,-1279.265,0.00017272,2]
[404329273,1770063049303,-1205.0,0.00017272,2]
[404329274,1770063049312,-917.0,0.00017272,2]
[404329275,1770063049321,-568.0,0.00017272,2]
[404329276,1770063049330,-3253.0,0.00017272,2]
[404329277,1770063049340,-1316.0,0.00017272,2]
[404329278,1770063049349,-233.51889341,0.00017317,2]
[404329279,1770063049359,-1592.87721993,0.00017317,2]
[404329280,1770063049368,-194.72792766,0.00017317,2]
[404329281,1770063049377,-283.0,0.00017318,2]
[404329282,1770063049386,-4407.0,0.00017328,2]
[404329283,1770063049395,-2877.0,0.0001736,2]
[404329284,1770063049405,-1000.0,0.0001737,2]
[404329285,1770063049414,-1000.0,0.0001737,2]
[404329286,1770063049422,-1000.0,0.0001737,2]
[404329287,1770063049431,-1000.0,0.0001737,2]
[404329288,1770063049440,-166.66,0.00017412,2]
[404329289,1770063049450,-355.0,0.0001748,2]
[404329290,1770063049459,-1000.0,0.00017534,2]
[404329291,1770063049468,-718.43917855,0.00017534,2]
[404329292,1770063049477,-450.0,0.00017568,2]
[404329293,1770063049486,-1154.18303728,0.0001764,2]
[404329294,1770063049495,-2500.0,0.00017664,2]
[404329295,1770063049504,-448.0,0.00017682,2]
[404329296,1770063049513,-500.0,0.00017699,2]
[404329297,1770063049522,-500.0,0.00017699,2]
[404329298,1770063049531,-500.0,0.00017699,2]
[404329299,1770063049540,-424.0,0.00017699,2]
[404329300,1770063049550,-500.0,0.00017699,2]
[404329301,1770063049560,-150.10178686,0.00017699,2]
[404329302,1770063049569,-150.0,0.00017699,2]
[404329303,1770063049579,-150.86853195,0.00017699,2]
[404329304,1770063049588,-150.0,0.00017699,2]
[404329305,1770063049597,-500.0,0.00017699,2]
[404329306,1770063049607,-150.0,0.00017699,2]
[404329307,1770063049617,-150.0,0.00017699,2]
[404329308,1770063049626,-150.0,0.00017699,2]
[404329309,1770063049636,-150.0,0.00017699,2]
[404329310,1770063049646,-234.50786848,0.00017699,2]
[404329311,1770063049655,-500.0,0.00017699,2]
[404329312,1770063049664,-500.0,0.00017699,2]
[404329313,1770063049673,-150.0,0.00017699,2]
[404329314,1770063049683,-500.0,0.00017699,2]
[404329315,1770063049692,-1358.0,0.00017699,2]
[404329316,1770063049701,-522.0,0.00017699,2]
[404329317,1770063049710,-500.0,0.00017699,2]
[404329318,1770063049719,-500.0,0.00017699,2]
[404329319,1770063049728,-651.0,0.00017699,2]
[404329320,1770063049738,-500.0,0.00017699,2]
[404329321,1770063049747,-150.0,0.00017699,2]
[404329322,1770063049757,-150.0,0.00017699,2]
[404329323,1770063049767,-612.0,0.00017699,2]
[404329324,1770063049776,-150.96565967,0.00017699,2]
[404329325,1770063049786,-150.0,0.00017699,2]
[404329326,1770063049796,-500.0,0.00017699,2]
[404329327,1770063049805,-500.0,0.00017699,2]
[404329328,1770063049815,-166.03343311,0.00017699,2]
[404329329,1770063049829,-150.0,0.00017699,2]
[404329330,1770063049838,-500.0,0.00017699,2]
[404329331,1770063049847,-500.0,0.00017699,2]
[404329332,1770063049857,-508.0,0.00017699,2]
[404329333,1770063049866,-500.0,0.00017699,2]
[404329334,1770063049876,-150.0,0.00017699,2]
[404329335,1770063049885,-1829.0,0.00017699,2]
[404329336,1770063049895,-948.0,0.00017699,2]
[404329337,1770063049904,-783.0,0.00017699,2]
[404329338,1770063049914,-150.0,0.00017699,2]
[404329339,1770063049924,-910.0,0.00017699,2]
[404329340,1770063049934,-500.0,0.00017699,2]
[404329341,1770063049950,-3618.63447513,0.000177,2]
[404329342,1770063049961,-500.0,0.00017709,2]
[404329343,1770063049971,-389.0,0.00017728,2]
[404329344,1770063049982,-389.0,0.00017749,2]
[404329345,1770063049992,-500.0,0.00017754,2]
[404329346,1770063050002,-500.0,0.00017754,2]
[404329347,1770063050012,-500.0,0.00017754,2]
[404329348,1770063050023,-424.0,0.00017754,2]
[404329349,1770063050033,-500.0,0.00017754,2]
[404329350,1770063050043,-150.0,0.00017754,2]
[404329351,1770063050053,-150.38249848,0.00017754,2]
[404329352,1770063050062,-500.0,0.00017754,2]
[404329353,1770063050074,-150.0,0.00017754,2]
[404329354,1770063050084,-150.0,0.00017754,2]
[404329355,1770063050094,-500.0,0.00017754,2]
[404329356,1770063050104,-500.0,0.00017754,2]
[404329357,1770063050113,-150.0,0.00017754,2]
[404329358,1770063050123,-500.0,0.00017754,2]
[404329359,1770063050133,-1358.0,0.00017754,2]
[404329360,1770063050143,-522.0,0.00017754,2]
[404329361,1770063050152,-500.0,0.00017754,2]
[404329362,1770063050162,-501.86439171,0.00017754,2]
[404329363,1770063050173,-651.0,0.00017754,2]
[404329364,1770063050183,-500.0,0.00017754,2]
[404329365,1770063050193,-150.0,0.00017754,2]
[404329366,1770063050203,-150.0,0.00017754,2]
[404329367,1770063050213,-612.0,0.00017754,2]
[404329368,1770063050223,-150.0,0.00017754,2]
[404329369,1770063050232,-500.0,0.00017754,2]
[404329370,1770063050242,-500.0,0.00017754,2]
[404329371,1770063050251,-500.0,0.00017754,2]
[404329372,1770063050261,-500.0,0.00017754,2]
[404329373,1770063050271,-508.0,0.00017754,2]
[404329374,1770063050281,-500.0,0.00017754,2]
[404329375,1770063050290,-1829.0,0.00017754,2]
[404329376,1770063050300,-948.0,0.00017754,2]
[404329377,1770063050310,-783.0,0.00017754,2]
[404329378,1770063050319,-910.0,0.00017754,2]
[404329379,1770063050328,-500.0,0.00017754,2]
[404329380,1770063050338,-268.93387854,0.00017764,2]
[404329381,1770063050347,-25000.0,0.00017786,3]
[404329382,1770063050357,-25000.0,0.00017794,3]
[404329383,1770063050367,-37752.8778,0.00017796,2]
[404329384,1770063050376,-6317.2,0.00017801,2]
[404329385,1770063050385,-25000.0,0.00017803,3]
[404329386,1770063050395,-150.0,0.00017808,2]
[404329387,1770063050404,-3850.93477356,0.00017808,2]
[404329388,1770063050414,-1000.0,0.00017808,2]
[404329389,1770063050423,-249.274,0.00017809,2]
[404329390,1770063050432,-500.0,0.00017809,2]
[404329391,1770063050441,-500.0,0.00017809,2]
[404329392,1770063050451,-424.0,0.00017809,2]
[404329393,1770063050460,-500.0,0.00017809,2]
[404329394,1770063050469,-150.0,0.00017809,2]
[404329395,1770063050479,-500.0,0.00017809,2]
[404329396,1770063050488,-150.0,0.00017809,2]
[404329397,1770063050499,-150.0,0.00017809,2]
[404329398,1770063050511,-500.0,0.00017809,2]
[404329399,1770063050521,-500.0,0.00017809,2]
[404329400,1770063050532,-150.0,0.00017809,2]
[404329401,1770063050543,-500.0,0.00017809,2]
[404329402,1770063050552,-1358.0,0.00017809,2]
[404329403,1770063050563,-522.0,0.00017809,2]
[404329404,1770063050573,-328.08780435,0.00017809,2]
[404329405,1770063050583,-651.0,0.00017809,2]
[404329406,1770063050592,-500.0,0.00017809,2]
[404329407,1770063050603,-150.0,0.00017809,2]
[404329408,1770063050612,-150.0,0.00017809,2]
[404329409,1770063050623,-612.0,0.00017809,2]
[404329410,1770063050633,-166.3626574,0.00017809,2]
[404329411,1770063050644,-500.0,0.00017809,2]
[404329412,1770063050655,-500.0,0.00017809,2]
[404329413,1770063050665,-500.0,0.00017809,2]
[404329414,1770063050674,-500.0,0.00017809,2]
[404329415,1770063050683,-508.0,0.00017809,2]
[404329416,1770063050693,-500.0,0.00017809,2]
[404329417,1770063050702,-1829.0,0.00017809,2]
[404329418,1770063050712,-948.0,0.00017809,2]
[404329419,1770063050722,-783.0,0.00017809,2]
[404329420,1770063050732,-910.0,0.00017809,2]
[404329421,1770063050743,-500.0,0.00017809,2]
[404329422,1770063050752,-25000.0,0.00017812,3]
[404329423,1770063050762,-159.60859955,0.00017818,2]
[404329424,1770063050771,-2000.0,0.0001782,2]
[404329425,1770063050781,-2000.0,0.0001782,2]
[404329426,1770063050790,-25000.0,0.00017821,3]
[404329427,1770063050800,-25000.0,0.0001783,3]
[404329428,1770063050809,-5888.0,0.00017835,2]
[404329429,1770063050820,-350.48,0.00017836,2]
[404329430,1770063050829,-25000.0,0.00017838,3]
[404329431,1770063050839,-25000.0,0.00017847,3]
[404329432,1770063050848,-25000.0,0.00017856,3]
[404329433,1770063050858,-200.0,0.00017856,2]
[404329434,1770063050867,-150.0,0.00017863,2]
[404329435,1770063050877,-350.48,0.00017863,2]
[404329436,1770063050887,-583.41072536,0.00017863,2]
[404329437,1770063050896,-424.0,0.00017863,2]
[404329438,1770063050906,-500.0,0.00017863,2]
[404329439,1770063050915,-500.0,0.00017863,2]
[404329440,1770063050924,-150.0,0.00017863,2]
[404329441,1770063050934,-500.0,0.00017863,2]
[404329442,1770063050947,-150.0,0.00017863,2]
[404329443,1770063050957,-282.25840253,0.00017863,2]
[404329444,1770063050966,-500.0,0.00017863,2]
[404329445,1770063050976,-500.0,0.00017863,2]
[404329446,1770063050986,-150.0,0.00017863,2]
[404329447,1770063050996,-490.52881885,0.00017863,2]
[404329448,1770063051005,-1358.0,0.00017863,2]
[404329449,1770063051016,-522.0,0.00017863,2]
[404329450,1770063051026,-651.0,0.00017863,2]
[404329451,1770063051035,-500.0,0.00017863,2]
[404329452,1770063051044,-150.0,0.00017863,2]
[404329453,1770063051053,-612.0,0.00017863,2]
[404329454,1770063051063,-500.0,0.00017863,2]
[404329455,1770063051073,-500.0,0.00017863,2]
[404329456,1770063051083,-500.0,0.00017863,2]
[404329457,1770063051092,-500.0,0.00017863,2]
[404329458,1770063051103,-508.0,0.00017863,2]
[404329459,1770063051112,-500.0,0.00017863,2]
[404329460,1770063051121,-1829.0,0.00017863,2]
[404329461,1770063051130,-948.0,0.00017863,2]
[404329462,1770063051140,-783.0,0.00017863,2]
[404329463,1770063051149,-910.0,0.00017863,2]
[404329464,1770063051158,-25000.0,0.00017865,3]
[404329465,1770063051169,-242.15909246,0.00017865,2]
[404329466,1770063051180,-1651.81367706,0.00017865,2]
[404329467,1770063051191,-201.93286099,0.00017865,2]
[404329468,1770063051200,-25000.0,0.00017874,3]
[404329469,1770063051209,-25000.0,0.00017882,3]
[404329470,1770063051220,-1000.0,0.00017885,2]
[404329471,1770063051230,-392.0,0.00017887,2]
[404329472,1770063051240,-25000.0,0.00017891,3]
[404329473,1770063051296,-25000.0,0.000179,3]
[404329474,1770063051305,-500.0,0.000179,2]
[404329475,1770063051315,-737.02185875,0.000179,2]
[404329476,1770063051324,-20453.46079029,0.000179,3]
[404329477,1770063051334,-173.35597854,0.000179,2]
[404329478,1770063051343,-2816.95173349,0.000179,2]
[404329479,1770063051352,-200.0,0.00017918,2]
[404329480,1770063051362,-389.0,0.00017918,2]
[404329481,1770063051371,-424.0,0.00017918,2]
[404329482,1770063051380,-500.0,0.00017918,2]
[404329483,1770063051390,-500.0,0.00017918,2]
[404329484,1770063051399,-214.97672583,0.00017918,2]
[404329485,1770063051408,-500.0,0.00017918,2]
[404329486,1770063051420,-291.47561802,0.00017918,2]
[404329487,1770063051431,-500.0,0.00017918,2]
[404329488,1770063051441,-506.01499169,0.00017918,2]
[404329489,1770063051451,-150.0,0.00017918,2]
[404329490,1770063051461,-1358.0,0.00017918,2]
[404329491,1770063051471,-522.0,0.00017918,2]
[404329492,1770063051480,-651.0,0.00017918,2]
[404329493,1770063051489,-500.0,0.00017918,2]
[404329494,1770063051498,-150.0,0.00017918,2]
[404329495,1770063051507,-612.0,0.00017918,2]
[404329496,1770063051517,-500.0,0.00017918,2]
[404329497,1770063051526,-500.0,0.00017918,2]
[404329498,1770063051536,-329.99262105,0.00017918,2]
[404329499,1770063051546,-500.0,0.00017918,2]
[404329500,1770063051556,-500.0,0.00017918,2]
[404329501,1770063051566,-508.0,0.00017918,2]
[404329502,1770063051576,-1829.0,0.00017918,2]
[404329503,1770063051585,-948.0,0.00017918,2]
[404329504,1770063051594,-783.0,0.00017918,2]
[404329505,1770063051604,-910.0,0.00017918,2]
[404329506,1770063051613,-166.66,0.00017951,2]
[404329507,1770063051622,-5888.0,0.00017952,2]
[404329508,1770063051631,-424.0,0.00017973,2]
[404329509,1770063051640,-500.0,0.00017973,2]
[404329510,1770063051649,-500.0,0.00017973,2]
[404329511,1770063051660,-500.0,0.00017973,2]
[404329512,1770063051672,-506.45210639,0.00017973,2]
[404329513,1770063051682,-155.65422092,0.00017973,2]
[404329514,1770063051691,-1358.0,0.00017973,2]
[404329515,1770063051701,-522.0,0.00017973,2]
[404329516,1770063051710,-651.0,0.00017973,2]
[404329517,1770063051719,-500.0,0.00017973,2]
[404329518,1770063051728,-250.0,0.00017973,2]
[404329519,1770063051738,-612.0,0.00017973,2]
[404329520,1770063051747,-500.0,0.00017973,2]
[404329521,1770063051757,-500.0,0.00017973,2]
[404329522,1770063051766,-500.0,0.00017973,2]
[404329523,1770063051776,-500.0,0.00017973,2]
[404329524,1770063051786,-508.0,0.00017973,2]
[404329525,1770063051795,-1829.0,0.00017973,2]
[404329526,1770063051805,-948.0,0.00017973,2]
[404329527,1770063051814,-783.0,0.00017973,2]
[404329528,1770063051824,-910.0,0.00017973,2]
[404329529,1770063051834,-1134.26821676,0.00017982,2]
[404329530,1770063051843,-500.0,0.00017982,2]
[404329531,1770063051852,-71846.2352822,0.00017997,2]
[404329532,1770063051861,-6758.4574479,0.00017997,2]
[404329533,1770063051871,-151.0,0.00017997,2]
[404329534,1770063051880,-151.0,0.00017997,2]
[404329535,1770063051889,-483.238241,0.00017997,2]
[404329536,1770063051899,-483.238241,0.00017997,2]
[404329537,1770063051909,-483.238241,0.00017997,2]
[404329538,1770063051919,-483.238241,0.00017997,2]
[404329539,1770063051929,-151.0,0.00017997,2]
[404329540,1770063051940,-151.0,0.00017997,2]
[404329541,1770063051950,-202.144,0.00017999,2]
[404329542,1770063051960,-300.0,0.00017999,2]
[404329543,1770063051969,-666.0,0.00017999,2]
[404329544,1770063051979,-300.0,0.00017999,2]
[404329545,1770063051990,-300.0,0.00017999,2]
[404329546,1770063052000,-300.0,0.00017999,2]
[404329547,1770063052010,-300.0,0.00017999,2]
[404329548,1770063052022,-300.0,0.00017999,2]
[404329549,1770063052031,-666.0,0.00017999,2]
[404329550,1770063052042,-300.0,0.00017999,2]
[404329551,1770063052052,-1871988.96618124,0.00018,2]
[404329552,1770063052062,-7500.35840853,0.00018,2]
[404329553,1770063052071,-109514.78915317,0.00018,2]
[404329554,1770063052082,-2517228.62827499,0.00018,2]
[404329555,1770063052354,-3751.93058712,0.00018,2]
[404329556,1770063052365,-1306.8598632,0.00018,2]
[404329557,1770063052376,-20708.56461446,0.00018,2]
[404329558,1770063052387,-10382.20550006,0.00018,2]
[404329559,1770063052398,-3419.43099117,0.00018,2]
[404329560,1770063052424,-315.16646615,0.00018,2]
[404329561,1770063052599,-394.2295,0.00010485,2]
[404329562,1770063052608,-175.09040388,0.00012408,2]
[404329563,1770063052618,-432.41321994,0.00012804,2]
[404329564,1770063052628,-175.09040388,0.00013462,2]
[404329565,1770063052637,-432.41321994,0.00013462,2]
[404329566,1770063052647,-18390.72078836,0.00013598,2]
[404329567,1770063052658,-790.709475,0.00013598,2]
[404329568,1770063052674,-32075.10853682,0.00013598,2]
[404329569,1770063052684,-1000.0,0.0001737,2]
[404329570,1770063052694,-1000.0,0.0001737,2]
[404329571,1770063052704,-1000.0,0.0001737,2]
[404329572,1770063052714,-1000.0,0.00017902,2]
[404329573,1770063052724,-1000.0,0.00017902,2]
[404329574,1770063052734,-4738461.74450037,0.00018,2]
[404329575,1770063052744,-1191.99317303,0.00018,2]
[404329576,1770063052754,-525.23948875,0.00018,2]
[404329577,1770063052765,-150.0,0.00018,7]
[404329578,1770063052775,-5800.0,0.00018,2]
[404329579,1770063052785,-150.0,0.00018,2]
[404329580,1770063052795,-150.0,0.00018,2]
[404329581,1770063052804,-150.0,0.00018,2]
[404329582,1770063052815,-150.0,0.00018,2]
[404329583,1770063052826,-170.0,0.00018,2]
[404329584,1770063052836,-150.0,0.00018,2]
[404329585,1770063052846,-150.0,0.00018,2]
[404329586,1770063052856,-150.0,0.00018,2]
[404329587,1770063052865,-150.0,0.00018,2]
[404329588,1770063052875,-150.0,0.00018,2]
[404329589,1770063052884,-200.0,0.00018,2]
[404329590,1770063052894,-163.404548,0.00018,2]
[404329591,1770063052904,-200.0,0.00018,2]
[404329592,1770063052914,-616.0,0.00018,2]
[404329593,1770063052924,-151.0,0.00018,2]
[404329594,1770063052934,-3518.726,0.00018,2]
[404329595,1770063052947,-151.0,0.00018,2]
[404329596,1770063052956,-151.0,0.00018,2]
[404329597,1770063052966,-151.0,0.00018,2]
[404329598,1770063052975,-151.0,0.00018,2]
[404329599,1770063052986,-151.0,0.00018,2]
[404329600,1770063052995,-151.0,0.00018,2]
[404329601,1770063053004,-151.0,0.00018,2]
[404329602,1770063053015,-1503.0,0.00018,2]
[404329603,1770063053024,-1503.0,0.00018,2]
[404329604,1770063053034,-2508.0,0.00018,2]
[404329605,1770063053043,-1503.0,0.00018,2]
[404329606,1770063053053,-1503.0,0.00018,2]
[404329607,1770063053063,-1503.0,0.00018,2]
[404329608,1770063053073,-1503.0,0.00018,2]
[404329609,1770063053083,-1503.0,0.00018,2]
[404329610,1770063053093,-1503.0,0.00018,2]
[404329611,1770063053103,-151.0,0.00018,2]
[404329612,1770063053113,-1503.0,0.00018,2]
[404329613,1770063053123,-151.0,0.00018,2]
[404329614,1770063053133,-151.0,0.00018,2]
[404329615,1770063053142,-197.585821,0.00018,2]
[404329616,1770063053152,-2000.0,0.00018,2]
[404329617,1770063053161,-2000.0,0.00018,2]
[404329618,1770063053171,-2000.0,0.00018,2]
[404329619,1770063053180,-2000.0,0.00018,2]
[404329620,1770063053190,-483.238241,0.00018,2]
[404329621,1770063053201,-483.238241,0.00018,2]
[404329622,1770063053211,-483.238241,0.00018,2]
[404329623,1770063053221,-483.238241,0.00018,2]
[404329624,1770063053231,-151.0,0.00018,2]
[404329625,1770063053240,-151.0,0.00018,2]
[404329626,1770063053250,-151.0,0.00018,2]
[404329627,1770063053259,-151.0,0.00018,2]
[404329628,1770063053268,-151.0,0.00018,2]
[404329629,1770063053278,-151.0,0.00018,2]
[404329630,1770063053287,-151.0,0.00018,2]
[404329631,1770063053296,-154.078939,0.00018,2]
[404329632,1770063053305,-151.0,0.00018,2]
[404329633,1770063053315,-534.176251,0.00018,2]
[404329634,1770063053326,-151.0,0.00018,2]
[404329635,1770063053335,-534.176251,0.00018,2]
[404329636,1770063053345,-151.0,0.00018,2]
[404329637,1770063053355,-151.0,0.00018,2]
[404329638,1770063053365,-418.358585,0.00018,2]
[404329639,1770063053375,-534.176251,0.00018,2]
[404329640,1770063053385,-418.358585,0.00018,2]
[404329641,1770063053394,-151.0,0.00018,2]
[404329642,1770063053405,-534.176251,0.00018,2]
[404329643,1770063053414,-151.0,0.00018,2]